[Event "FIDE Women Candidates 2026"]
[White "Tan,Zhongyi"]
[Black "Assaubayeva,Bibisara"]
[Site "Agios Georgios Pegeia"]
[Round "11.4"]
[Annotator "RC"]
[Result "1/2-1/2"]
[Date "2026.04.11"]
[WhiteElo "2535"]
[BlackElo "2516"]
[PlyCount "204"]
[TimeControl "60"]

1. e4 {[%emt 0:0:4]} c5 {[%emt 0:0:4]} 2. Nf3 {[%emt 0:0:7]} Nc6 {[%emt 0:0:5]} 3. Nc3 {[%emt 0:0:7]} g6 {[%emt 0:0:5]} 4. Bb5 {[%emt 0:0:11]} Bg7 {[%emt 0:0:23]} 5. d3 {[%emt 0:0:14]} d6 {[%emt 0:1:16]} 6. e5 {[%emt 0:0:24]} dxe5 {[%emt 0:0:41]} 7. Bxc6+ {[%emt 0:0:7]} bxc6 {[%emt 0:0:4]} 8. O-O {[%emt 0:0:7]} c4 {[%emt 0:2:55]} 9. Re1 {[%emt 0:0:11]} Qc7 {[%emt 0:5:9]} 10. h3 {[%emt 0:0:28]} cxd3 {[%emt 0:6:53]} 11. cxd3 {[%emt 0:0:6]} Nh6 {[%emt 0:9:10]} 12. Nxe5 {[%emt 0:3:15]} Nf5 {[%emt 0:5:8]} 13. Bf4 {[%emt 0:0:23]} Qb7 {[%emt 0:0:46]} 14. Qa4 {[%emt 0:4:28]} O-O {[%emt 0:5:13]} 15. Qxc6 {[%emt 0:5:53]} Rd8 {[%emt 0:1:55]} 16. Ne4 {[%emt 0:12:37]} Nd4 {[%emt 0:9:37]} 17. Qc4 {[%emt 0:12:13]} Ne6 {[%emt 0:12:50]} 18. Bg3 {[%emt 0:11:29]} Rd4 {[%emt 0:2:43]} 19. Qc1 {[%emt 0:2:42]} Rd5 {[%emt 0:4:8]} 20. Nc3 {[%emt 0:0:9]} Rd8 {[%emt 0:0:34]} 21. Na4 {[%emt 0:15:25]} Bd7 {[%emt 0:5:34]} 22. Nc5 {[%emt 0:6:57]} Nxc5 {[%emt 0:0:0]} 23. Qxc5 {[%emt 0:0:5]} Be8 {[%emt 0:0:0]} 24. b3 {[%emt 0:1:15]} Rac8 {[%emt 0:0:38]} 25. Qe3 {[%emt 0:0:7]} Qa6 {[%emt 0:5:59]} 26. Bh4 {[%emt 0:5:48]} f6 {[%emt 0:3:54]} 27. Nc4 {[%emt 0:0:32]} e5 {[%emt 0:0:32]} 28. f3 {[%emt 0:3:56]} Rd4 {[%emt 0:2:0]} 29. Bf2 {[%emt 0:0:16]} Rcd8 {[%emt 0:0:17]} 30. Red1 {[%emt 0:1:20]} Bf7 {[%emt 0:0:58]} 31. Qe2 {[%emt 0:0:27]} R4d7 {[%emt 0:0:12]} 32. Rac1 {[%emt 0:0:35]} Bf8 {[%emt 0:4:42]} 33. Rc2 {[%emt 0:3:34]} Qb5 {[%emt 0:0:52]} 34. Kh1 {[%emt 0:0:36]} a5 {[%emt 0:1:44]} 35. Be1 {[%emt 0:3:4]} Bb4 {[%emt 0:3:38]} 36. Bxb4 {[%emt 0:0:46]} axb4 {[%emt 0:0:48]} 37. Nb2 {[%emt 0:2:59]} Qa6 {[%emt 0:3:16]} 38. Rdc1 {[%emt 0:0:20]} Qxa2 {[%emt 0:1:22]} 39. Na4 {[%emt 0:0:24]} Qa3 {[%emt 0:2:58]} 40. Nc5 {[%emt 0:0:47]} Rd4 {[%emt 0:0:42]} 41. Ne4 {[%emt 0:33:16]} Kg7 {[%emt 0:3:15]} 42. Rc6 {[%emt 0:11:39]} Rxd3 {[%emt 0:10:48]} 43. Nxf6 {[%emt 0:0:0]} Qa7 {[%emt 0:0:31]} 44. Qxe5 {[%emt 0:0:0]} Rd1+ {[%emt 0:0:31]} 45. Kh2 {[%emt 0:0:0]} Qd4 {[%emt 0:0:28]} 46. Ng4+ {[%emt 0:0:0]} Qxe5+ {[%emt 0:0:8]} 47. Nxe5 {[%emt 0:0:0]} Rxc1 {[%emt 0:1:31]} 48. Rxc1 {[%emt 0:0:0]} Bxb3 {[%emt 0:0:13]} 49. Rc7+ {[%emt 0:0:0]} Kf6 {[%emt 0:4:37]} 50. Nc6 {[%emt 0:0:0]} Rd2 {[%emt 0:1:21]} 51. Nxb4 {[%emt 0:0:0]} h5 {[%emt 0:2:37]} 52. Na6 {[%emt 0:0:0]} Ra2 {[%emt 0:2:40]} 53. Rc6+ {[%emt 0:0:0]} Kf7 {[%emt 0:0:28]} 54. h4 {[%emt 0:0:0]} Bd5 {[%emt 0:2:8]} 55. Rc7+ {[%emt 0:0:0]} Ke6 {[%emt 0:0:24]} 56. Nb4 {[%emt 0:0:0]} Ra4 {[%emt 0:0:19]} 57. Nxd5 {[%emt 0:0:0]} Kxd5 {[%emt 0:0:1]} 58. Rg7 {[%emt 0:0:0]} Rxh4+ {[%emt 0:5:21]} 59. Kg3 {[%emt 0:0:0]} Rh1 {[%emt 0:0:3]} 60. Kf4 {[%emt 0:0:0]} Ke6 {[%emt 0:0:22]} 61. Rxg6+ {[%emt 0:0:0]} Kf7 {[%emt 0:0:1]} 62. Ra6 {[%emt 0:0:0]} Rg1 {[%emt 0:1:15]} 63. g3 {[%emt 0:0:0]} Kg7 {[%emt 0:0:28]} 64. Ra5 {[%emt 0:0:0]} Kh6 {[%emt 0:0:19]} 65. Rf5 {[%emt 0:0:0]} Rg2 {[%emt 0:0:24]} 66. Rg5 {[%emt 0:0:0]} Ra2 {[%emt 0:0:13]} 67. Re5 {[%emt 0:0:0]} Rg2 {[%emt 0:0:8]} 68. Re1 {[%emt 0:0:0]} Kg6 {[%emt 0:0:23]} 69. Re8 {[%emt 0:0:0]} Kg7 {[%emt 0:1:12]} 70. Re5 {[%emt 0:0:12]} Kh6 {[%emt 0:0:8]} 71. Rg5 {[%emt 0:0:5]} Ra2 {[%emt 0:0:5]} 72. Rg8 {[%emt 0:0:19]} Ra4+ {[%emt 0:2:5]} 73. Ke3 {[%emt 0:0:5]} Ra3+ {[%emt 0:0:2]} 74. Kf2 {[%emt 0:0:6]} Ra2+ {[%emt 0:0:3]} 75. Kf1 {[%emt 0:0:4]} Rb2 {[%emt 0:1:16]} 76. Re8 {[%emt 0:0:7]} Kg5 {[%emt 0:0:45]} 77. Re5+ {[%emt 0:0:4]} Kg6 {[%emt 0:0:4]} 78. Re2 {[%emt 0:0:4]} Rb3 {[%emt 0:0:6]} 79. Kg2 {[%emt 0:0:6]} Kf5 {[%emt 0:1:15]} 80. Ra2 {[%emt 0:0:7]} Rc3 {[%emt 0:0:33]} 81. Ra6 {[%emt 0:0:20]} Rb3 {[%emt 0:2:6]} 82. f4 {[%emt 0:1:28]} h4 {[%emt 0:0:27]} 83. Ra5+ {[%emt 0:0:6]} Kf6 {[%emt 0:0:6]} 84. gxh4 {[%emt 0:0:7]} Kg6 {[%emt 0:0:12]} 85. Rg5+ {[%emt 0:0:9]} Kh6 {[%emt 0:0:3]} 86. Rg3 {[%emt 0:0:46]} Rb4 {[%emt 0:0:1]} 87. Kf3 {[%emt 0:0:9]} Kh5 {[%emt 0:0:9]} 88. Rg8 {[%emt 0:3:6]} Rb3+ {[%emt 0:0:2]} 89. Ke4 {[%emt 0:0:6]} Rb4+ {[%emt 0:0:1]} 90. Ke5 {[%emt 0:0:8]} Rb5+ {[%emt 0:0:6]} 91. Ke6 {[%emt 0:0:12]} Rb6+ {[%emt 0:0:5]} 92. Kd5 {[%emt 0:0:17]} Rb5+ {[%emt 0:0:28]} 93. Kc4 {[%emt 0:0:24]} Rb1 {[%emt 0:0:9]} 94. Kd5 {[%emt 0:3:31]} Rb5+ {[%emt 0:0:2]} 95. Kc6 {[%emt 0:0:6]} Rb1 {[%emt 0:1:8]} 96. Rg5+ {[%emt 0:1:50]} Kxh4 {[%emt 0:0:11]} 97. Kd6 {[%emt 0:0:15]} Rb4 {[%emt 0:0:49]} 98. Ke5 {[%emt 0:0:5]} Rb5+ {[%emt 0:0:29]} 99. Kf6 {[%emt 0:0:5]} Rb6+ {[%emt 0:0:9]} 100. Kf5 {[%emt 0:0:23]} Rb5+ {[%emt 0:0:4]} 101. Kg6 {[%emt 0:1:36]} Rb6+ {[%emt 0:0:13]} 102. Kg7 {[%emt 0:0:16]} Rb4 {[%emt 0:0:11]} 1/2-1/2

[Event "FIDE Women Candidates 2026"]
[White "Vaishali,Rameshbabu"]
[Black "Zhu,Jiner"]
[Site "Agios Georgios Pegeia"]
[Round "12.1"]
[Annotator "RC"]
[Result "0-1"]
[Date "2026.04.12"]
[WhiteElo "2470"]
[BlackElo "2578"]
[PlyCount "78"]
[TimeControl "60"]

1. e4 {[%emt 0:0:23]} c6 {[%emt 0:0:8]} 2. d4 {[%emt 0:0:14]} d5 {[%emt 0:0:7]} 3. e5 {[%emt 0:0:9]} Bf5 {[%emt 0:0:7]} 4. Bd3 {[%emt 0:0:20]} Bxd3 {[%emt 0:0:21]} 5. cxd3 {[%emt 0:0:15]} e6 {[%emt 0:0:22]} 6. Nc3 {[%emt 0:0:9]} Ne7 {[%emt 0:9:17]} 7. Nf3 {[%emt 0:0:13]} h6 {[%emt 0:0:29]} 8. h4 {[%emt 0:6:34]} Nd7 {[%emt 0:1:43]} 9. Ne2 {[%emt 0:0:50]} b6 {[%emt 0:4:0]} 10. Bd2 {[%emt 0:24:20]} c5 {[%emt 0:1:54]} 11. Rc1 {[%emt 0:0:22]} Nc6 {[%emt 0:3:46]} 12. h5 {[%emt 0:2:9]} Qc8 {[%emt 0:8:55]} 13. dxc5 {[%emt 0:24:56]} bxc5 {[%emt 0:0:57]} 14. Qa4 {[%emt 0:0:28]} Qb7 {[%emt 0:3:5]} 15. O-O {[%emt 0:3:15]} Rb8 {[%emt 0:3:58]} 16. Rc2 {[%emt 0:15:54]} a6 {[%emt 0:35:30]} 17. Qf4 {[%emt 0:4:43]} Qb5 {[%emt 0:0:9]} 18. Nc1 {[%emt 0:0:44]} Rg8 {[%emt 0:0:49]} 19. b3 {[%emt 0:1:27]} g5 {[%emt 0:1:12]} 20. hxg6 {[%emt 0:0:3]} Rxg6 {[%emt 0:0:5]} 21. d4 {[%emt 0:1:47]} Be7 {[%emt 0:3:7]} 22. Be3 {[%emt 0:5:9]} c4 {[%emt 0:4:42]} 23. bxc4 {[%emt 0:1:16]} dxc4 {[%emt 0:0:5]} 24. Ne2 {[%emt 0:0:25]} Nb4 {[%emt 0:0:52]} 25. Rb2 {[%emt 0:2:31]} Qc6 {[%emt 0:2:4]} 26. Rfb1 {[%emt 0:0:5]} Rb5 {[%emt 0:4:4]} 27. d5 {[%emt 0:1:36]} Nxd5 {[%emt 0:1:31]} 28. Qe4 {[%emt 0:0:20]} Qb7 {[%emt 0:4:58]} 29. Bd4 {[%emt 0:1:58]} h5 {[%emt 0:3:21]} 30. Kh1 {[%emt 0:1:28]} Rg4 {[%emt 0:0:53]} 31. Qh7 {[%emt 0:0:13]} h4 {[%emt 0:1:0]} 32. Qh5 {[%emt 0:1:24]} Rg6 {[%emt 0:1:2]} 33. Qh8+ {[%emt 0:0:45]} Nf8 {[%emt 0:0:4]} 34. a4 {[%emt 0:0:19]} Rb3 {[%emt 0:0:31]} 35. Rxb3 {[%emt 0:0:42]} cxb3 {[%emt 0:0:4]} 36. Nc1 {[%emt 0:0:28]} h3 {[%emt 0:1:32]} 37. Nxb3 {[%emt 0:0:33]} hxg2+ {[%emt 0:0:12]} 38. Kh2 {[%emt 0:0:8]} g1=Q+ {[%emt 0:1:1]} 39. Nxg1 {[%emt 0:0:15]} Nc3 {[%emt 0:0:11]} 0-1

[Event "FIDE Women Candidates 2026"]
[White "Muzychuk,Anna"]
[Black "Goryachkina,Aleksandra"]
[Site "Agios Georgios Pegeia"]
[Round "12.2"]
[Annotator "RC"]
[Result "1/2-1/2"]
[Date "2026.04.12"]
[WhiteElo "2522"]
[BlackElo "2534"]
[PlyCount "142"]
[TimeControl "60"]

1. e4 {[%emt 0:0:3]} e5 {[%emt 0:0:7]} 2. Nf3 {[%emt 0:0:4]} Nc6 {[%emt 0:0:5]} 3. Bb5 {[%emt 0:0:8]} a6 {[%emt 0:0:7]} 4. Ba4 {[%emt 0:0:5]} Nf6 {[%emt 0:0:7]} 5. O-O {[%emt 0:0:12]} Be7 {[%emt 0:0:6]} 6. d3 {[%emt 0:0:9]} b5 {[%emt 0:0:19]} 7. Bb3 {[%emt 0:0:5]} d6 {[%emt 0:0:19]} 8. Bd2 {[%emt 0:0:10]} O-O {[%emt 0:0:44]} 9. h3 {[%emt 0:0:13]} h6 {[%emt 0:1:29]} 10. Re1 {[%emt 0:0:16]} Rb8 {[%emt 0:3:9]} 11. a3 {[%emt 0:4:9]} Re8 {[%emt 0:2:24]} 12. Nc3 {[%emt 0:0:28]} Bf8 {[%emt 0:1:31]} 13. Nd5 {[%emt 0:0:32]} Nxd5 {[%emt 0:6:31]} 14. Bxd5 {[%emt 0:0:6]} Ne7 {[%emt 0:1:1]} 15. Bb3 {[%emt 0:0:11]} Ng6 {[%emt 0:1:52]} 16. a4 {[%emt 0:2:34]} Be6 {[%emt 0:5:39]} 17. Bxe6 {[%emt 0:2:19]} Rxe6 {[%emt 0:1:22]} 18. axb5 {[%emt 0:0:9]} axb5 {[%emt 0:0:6]} 19. Ra7 {[%emt 0:5:21]} b4 {[%emt 0:6:33]} 20. d4 {[%emt 0:13:43]} d5 {[%emt 0:16:3]} 21. dxe5 {[%emt 0:6:45]} d4 {[%emt 0:3:10]} 22. Qe2 {[%emt 0:3:18]} Nxe5 {[%emt 0:4:18]} 23. Nxe5 {[%emt 0:7:58]} Rxe5 {[%emt 0:0:2]} 24. Qd3 {[%emt 0:1:53]} b3 {[%emt 0:13:25]} 25. c3 {[%emt 0:12:20]} dxc3 {[%emt 0:9:56]} 26. Qxd8 {[%emt 0:0:16]} Rxd8 {[%emt 0:0:6]} 27. Bxc3 {[%emt 0:0:7]} Rb5 {[%emt 0:0:42]} 28. Rxc7 {[%emt 0:7:17]} Bb4 {[%emt 0:0:54]} 29. Bxb4 {[%emt 0:4:50]} Rxb4 {[%emt 0:0:2]} 30. Re2 {[%emt 0:0:56]} Rd1+ {[%emt 0:5:34]} 31. Kh2 {[%emt 0:0:10]} Rbd4 {[%emt 0:2:57]} 32. Rc3 {[%emt 0:1:36]} R4d2 {[%emt 0:0:30]} 33. Rxd2 {[%emt 0:0:28]} Rxd2 {[%emt 0:0:1]} 34. Rxb3 {[%emt 0:0:7]} Rxf2 {[%emt 0:0:3]} 35. Kg3 {[%emt 0:0:11]} Rc2 {[%emt 0:1:47]} 36. h4 {[%emt 0:2:7]} Kf8 {[%emt 0:2:27]} 37. Rb7 {[%emt 0:2:54]} Rc6 {[%emt 0:6:0]} 38. b4 {[%emt 0:5:35]} Rg6+ {[%emt 0:2:37]} 39. Kf3 {[%emt 0:0:8]} Rf6+ {[%emt 0:0:15]} 40. Ke3 {[%emt 0:0:14]} Rg6 {[%emt 0:0:15]} 41. b5 {[%emt 0:33:29]} Rxg2 {[%emt 0:30:43]} 42. b6 {[%emt 0:0:15]} g5 {[%emt 0:3:10]} 43. Rc7 {[%emt 0:12:17]} Rb2 {[%emt 0:2:26]} 44. b7 {[%emt 0:0:13]} Kg7 {[%emt 0:0:11]} 45. e5 {[%emt 0:10:34]} Kg6 {[%emt 0:0:0]} 46. h5+ {[%emt 0:0:0]} Kf5 {[%emt 0:0:0]} 47. Kd4 {[%emt 0:0:0]} Ke6 {[%emt 0:0:0]} 48. Kc5 {[%emt 0:0:0]} Kxe5 {[%emt 0:0:0]} 49. Kc6 {[%emt 0:0:0]} g4 {[%emt 0:0:0]} 50. Re7+ {[%emt 0:0:0]} Kf6 {[%emt 0:0:0]} 51. Re8 {[%emt 0:0:0]} Rxb7 {[%emt 0:0:0]} 52. Kxb7 {[%emt 0:0:0]} Kg5 {[%emt 0:0:0]} 53. Kc6 {[%emt 0:0:0]} Kxh5 {[%emt 0:0:0]} 54. Kd5 {[%emt 0:0:0]} Kh4 {[%emt 0:0:0]} 55. Ke4 {[%emt 0:0:0]} Kg3 {[%emt 0:0:0]} 56. Ra8 {[%emt 0:0:0]} h5 {[%emt 0:0:0]} 57. Ra3+ {[%emt 0:0:0]} Kh2 {[%emt 0:1:41]} 58. Kf4 {[%emt 0:0:27]} f5 {[%emt 0:0:8]} 59. Ra2+ {[%emt 0:1:6]} Kh3 {[%emt 0:0:8]} 60. Ra3+ {[%emt 0:0:7]} Kh2 {[%emt 0:0:1]} 61. Ra2+ {[%emt 0:1:16]} Kh3 {[%emt 0:0:2]} 62. Ra5 {[%emt 0:0:7]} g3 {[%emt 0:2:40]} 63. Rxf5 {[%emt 0:0:28]} Kg2 {[%emt 0:1:14]} 64. Ra5 {[%emt 0:0:35]} h4 {[%emt 0:0:16]} 65. Ra2+ {[%emt 0:1:21]} Kh3 {[%emt 0:0:1]} 66. Ra3 {[%emt 0:0:28]} Kh2 {[%emt 0:0:16]} 67. Kg4 {[%emt 0:0:23]} g2 {[%emt 0:0:23]} 68. Rh3+ {[%emt 0:0:21]} Kg1 {[%emt 0:0:1]} 69. Kxh4 {[%emt 0:0:34]} Kf2 {[%emt 0:0:13]} 70. Rh2 {[%emt 0:0:6]} Kf3 {[%emt 0:0:21]} 71. Rxg2 {[%emt 0:0:3]} Kxg2 {[%emt 0:0:4]} 1/2-1/2

[Event "FIDE Women Candidates 2026"]
[White "Assaubayeva,Bibisara"]
[Black "Lagno,Kateryna"]
[Site "Agios Georgios Pegeia"]
[Round "12.3"]
[Annotator "RC"]
[Result "1-0"]
[Date "2026.04.12"]
[WhiteElo "2516"]
[BlackElo "2508"]
[PlyCount "97"]
[TimeControl "60"]

1. e4 {[%emt 0:0:3]} e5 {[%emt 0:0:6]} 2. Nf3 {[%emt 0:0:5]} Nc6 {[%emt 0:0:6]} 3. Bc4 {[%emt 0:0:4]} Bc5 {[%emt 0:0:20]} 4. c3 {[%emt 0:0:6]} Nf6 {[%emt 0:0:16]} 5. d4 {[%emt 0:0:5]} exd4 {[%emt 0:0:20]} 6. cxd4 {[%emt 0:0:6]} Bb4+ {[%emt 0:0:26]} 7. Nbd2 {[%emt 0:0:6]} d5 {[%emt 0:3:35]} 8. exd5 {[%emt 0:0:5]} Nxd5 {[%emt 0:0:3]} 9. O-O {[%emt 0:0:8]} O-O {[%emt 0:0:6]} 10. a3 {[%emt 0:0:2]} Be7 {[%emt 0:1:47]} 11. Re1 {[%emt 0:0:22]} Bg4 {[%emt 0:2:2]} 12. h3 {[%emt 0:0:40]} Bh5 {[%emt 0:0:23]} 13. Ba2 {[%emt 0:11:55]} Nb6 {[%emt 0:23:21]} 14. g4 {[%emt 0:5:54]} Bg6 {[%emt 0:0:8]} 15. Nf1 {[%emt 0:0:33]} Bd6 {[%emt 0:4:58]} 16. Bg5 {[%emt 0:5:22]} Qd7 {[%emt 0:5:34]} 17. Ne5 {[%emt 0:1:31]} Bxe5 {[%emt 0:3:24]} 18. dxe5 {[%emt 0:0:6]} h6 {[%emt 0:7:41]} 19. Bh4 {[%emt 0:0:58]} Qd4 {[%emt 0:7:10]} 20. Nh2 {[%emt 0:11:12]} Qxb2 {[%emt 0:5:25]} 21. f4 {[%emt 0:5:41]} Bc2 {[%emt 0:1:19]} 22. Qc1 {[%emt 0:8:54]} Qc3 {[%emt 0:5:6]} 23. Re3 {[%emt 0:4:39]} Qd4 {[%emt 0:3:43]} 24. Bf2 {[%emt 0:1:47]} Qa4 {[%emt 0:2:49]} 25. f5 {[%emt 0:5:16]} Rad8 {[%emt 0:1:8]} 26. Qb2 {[%emt 0:7:43]} Nd5 {[%emt 0:3:10]} 27. Bxd5 {[%emt 0:1:52]} Rxd5 {[%emt 0:0:4]} 28. Rc1 {[%emt 0:0:14]} Bd3 {[%emt 0:12:39]} 29. Qxb7 {[%emt 0:0:30]} Bb5 {[%emt 0:1:34]} 30. Qxc7 {[%emt 0:1:28]} Nd4 {[%emt 0:0:41]} 31. Rce1 {[%emt 0:3:30]} Nc2 {[%emt 0:0:34]} 32. Re4 {[%emt 0:0:14]} Qb3 {[%emt 0:0:3]} 33. Rc1 {[%emt 0:0:20]} Rd2 {[%emt 0:0:25]} 34. e6 {[%emt 0:11:40]} fxe6 {[%emt 0:0:23]} 35. Qf4 {[%emt 0:0:53]} Rfd8 {[%emt 0:1:19]} 36. fxe6 {[%emt 0:0:20]} Rd1+ {[%emt 0:5:28]} 37. Rxd1 {[%emt 0:0:1]} Rxd1+ {[%emt 0:0:3]} 38. Kg2 {[%emt 0:0:7]} Bc6 {[%emt 0:0:11]} 39. Qf7+ {[%emt 0:0:7]} Kh7 {[%emt 0:0:25]} 40. Qf5+ {[%emt 0:0:6]} Kg8 {[%emt 0:0:37]} 41. e7 {[%emt 0:42:24]} Qb7 {[%emt 0:8:51]} 42. Qe6+ {[%emt 0:0:0]} Kh7 {[%emt 0:0:6]} 43. Qxc6 {[%emt 0:0:0]} Qxc6 {[%emt 0:2:32]} 44. e8=Q {[%emt 0:0:0]} Qb7 {[%emt 0:0:30]} 45. Nf3 {[%emt 0:0:0]} Rd6 {[%emt 0:0:30]} 46. Rf4 {[%emt 0:0:0]} Rd2 {[%emt 0:0:30]} 47. Rf8 {[%emt 0:0:0]} Rxf2+ {[%emt 0:0:30]} 48. Kxf2 {[%emt 0:0:0]} Qb6+ {[%emt 0:0:30]} 49. Kg3 {[%emt 0:0:0]} 1-0

[Event "FIDE Women Candidates 2026"]
[White "Divya Deshmukh"]
[Black "Tan,Zhongyi"]
[Site "Agios Georgios Pegeia"]
[Round "12.4"]
[Annotator "RC"]
[Result "0-1"]
[Date "2026.04.12"]
[WhiteElo "2497"]
[BlackElo "2535"]
[PlyCount "124"]
[TimeControl "60"]

1. e4 {[%emt 0:0:4]} e5 {[%emt 0:0:6]} 2. Nf3 {[%emt 0:0:5]} Nc6 {[%emt 0:0:25]} 3. g3 {[%emt 0:0:18]} Nf6 {[%emt 0:0:29]} 4. d3 {[%emt 0:0:25]} Bc5 {[%emt 0:3:6]} 5. Bg2 {[%emt 0:0:6]} d6 {[%emt 0:1:14]} 6. O-O {[%emt 0:0:48]} O-O {[%emt 0:0:26]} 7. c4 {[%emt 0:0:12]} Nd4 {[%emt 0:3:27]} 8. h3 {[%emt 0:6:47]} c6 {[%emt 0:8:26]} 9. Nc3 {[%emt 0:2:30]} a6 {[%emt 0:3:55]} 10. Be3 {[%emt 0:11:6]} b5 {[%emt 0:0:40]} 11. b3 {[%emt 0:13:52]} Qb6 {[%emt 0:4:42]} 12. Bxd4 {[%emt 0:7:34]} Bxd4 {[%emt 0:0:22]} 13. Nxd4 {[%emt 0:1:14]} Qxd4 {[%emt 0:0:39]} 14. Ne2 {[%emt 0:0:40]} Qb6 {[%emt 0:0:29]} 15. Kh2 {[%emt 0:1:29]} Bb7 {[%emt 0:2:31]} 16. f4 {[%emt 0:9:13]} Rfe8 {[%emt 0:0:8]} 17. Qc2 {[%emt 0:2:27]} b4 {[%emt 0:7:12]} 18. g4 {[%emt 0:15:14]} Rad8 {[%emt 0:4:56]} 19. Rad1 {[%emt 0:3:47]} Nd7 {[%emt 0:10:43]} 20. d4 {[%emt 0:3:7]} c5 {[%emt 0:0:22]} 21. d5 {[%emt 0:2:12]} exf4 {[%emt 0:0:7]} 22. Nxf4 {[%emt 0:0:31]} Re5 {[%emt 0:0:47]} 23. Nd3 {[%emt 0:2:6]} Re7 {[%emt 0:0:6]} 24. Rf4 {[%emt 0:0:9]} Nf8 {[%emt 0:0:46]} 25. Rdf1 {[%emt 0:1:56]} Ng6 {[%emt 0:0:10]} 26. R4f2 {[%emt 0:0:1]} Rf8 {[%emt 0:2:3]} 27. Qc1 {[%emt 0:2:0]} Qd8 {[%emt 0:0:13]} 28. a3 {[%emt 0:1:38]} a5 {[%emt 0:1:19]} 29. a4 {[%emt 0:1:18]} Ree8 {[%emt 0:0:17]} 30. Qe3 {[%emt 0:2:13]} Bc8 {[%emt 0:0:8]} 31. Qg3 {[%emt 0:0:50]} Ne5 {[%emt 0:1:37]} 32. Nxe5 {[%emt 0:4:28]} Rxe5 {[%emt 0:2:50]} 33. h4 {[%emt 0:1:18]} h6 {[%emt 0:2:3]} 34. Rf4 {[%emt 0:2:8]} Bd7 {[%emt 0:1:45]} 35. Qf2 {[%emt 0:1:23]} Qe7 {[%emt 0:0:7]} 36. Qg3 {[%emt 0:0:13]} f6 {[%emt 0:0:42]} 37. R4f2 {[%emt 0:1:47]} Qe8 {[%emt 0:3:5]} 38. Rf4 {[%emt 0:1:19]} Qg6 {[%emt 0:1:31]} 39. Qf3 {[%emt 0:0:47]} Kf7 {[%emt 0:2:11]} 40. Qg3 {[%emt 0:0:36]} Ke7 {[%emt 0:0:38]} 41. h5 {[%emt 0:11:57]} Qg5 {[%emt 0:1:34]} 42. Bf3 {[%emt 0:1:0]} Re8 {[%emt 0:0:29]} 43. Bd1 {[%emt 0:0:40]} Kd8 {[%emt 0:0:8]} 44. Bc2 {[%emt 0:0:37]} Kc7 {[%emt 0:0:6]} 45. R1f2 {[%emt 0:1:19]} R5e7 {[%emt 0:0:19]} 46. Kg2 {[%emt 0:1:14]} Qe5 {[%emt 0:0:16]} 47. Kh2 {[%emt 0:2:54]} Qd4 {[%emt 0:1:43]} 48. Qd3 {[%emt 0:3:47]} Qa1 {[%emt 0:10:28]} 49. Rf1 {[%emt 0:2:27]} Qe5 {[%emt 0:0:6]} 50. Qg3 {[%emt 0:0:11]} Rg8 {[%emt 0:1:5]} 51. R1f2 {[%emt 0:5:4]} Ree8 {[%emt 0:0:9]} 52. Rf5 {[%emt 0:1:12]} Qe7 {[%emt 0:2:21]} 53. R5f3 {[%emt 0:0:43]} Qd8 {[%emt 0:0:35]} 54. Rf1 {[%emt 0:2:42]} Re7 {[%emt 0:1:24]} 55. Rf4 {[%emt 0:0:49]} Qe8 {[%emt 0:0:13]} 56. Qf3 {[%emt 0:0:47]} Re5 {[%emt 0:1:36]} 57. Rf5 {[%emt 0:0:27]} g6 {[%emt 0:1:29]} 58. Rxf6 {[%emt 0:0:5]} gxh5 {[%emt 0:0:20]} 59. Rxh6 {[%emt 0:0:35]} hxg4 {[%emt 0:2:22]} 60. Qf7 {[%emt 0:0:16]} Rh8 {[%emt 0:1:22]} 61. Rxh8 {[%emt 0:1:48]} Qxh8+ {[%emt 0:0:9]} 62. Kg1 {[%emt 0:0:1]} g3 {[%emt 0:0:53]} 0-1

[Event "FIDE Women Candidates 2026"]
[White "Zhu,Jiner"]
[Black "Goryachkina,Aleksandra"]
[Site "Agios Georgios Pegeia"]
[Round "13.1"]
[Annotator "RC"]
[Result "0-1"]
[Date "2026.04.14"]
[WhiteElo "2578"]
[BlackElo "2534"]
[PlyCount "114"]
[TimeControl "60"]

1. e4 {[%emt 0:0:4]} e5 {[%emt 0:0:5]} 2. Nf3 {[%emt 0:0:12]} Nc6 {[%emt 0:0:6]} 3. Bc4 {[%emt 0:0:7]} Nf6 {[%emt 0:0:13]} 4. d3 {[%emt 0:0:8]} h6 {[%emt 0:0:21]} 5. c3 {[%emt 0:0:19]} Bc5 {[%emt 0:0:39]} 6. b4 {[%emt 0:0:13]} Be7 {[%emt 0:0:15]} 7. O-O {[%emt 0:3:29]} O-O {[%emt 0:2:5]} 8. Bb2 {[%emt 0:0:32]} a6 {[%emt 0:0:30]} 9. a4 {[%emt 0:0:16]} d5 {[%emt 0:0:22]} 10. exd5 {[%emt 0:0:22]} Nxd5 {[%emt 0:0:5]} 11. b5 {[%emt 0:0:17]} axb5 {[%emt 0:0:23]} 12. axb5 {[%emt 0:0:11]} Rxa1 {[%emt 0:0:7]} 13. Bxa1 {[%emt 0:0:4]} Na5 {[%emt 0:0:10]} 14. Bxd5 {[%emt 0:0:16]} Qxd5 {[%emt 0:0:5]} 15. c4 {[%emt 0:0:6]} Qd8 {[%emt 0:0:21]} 16. Bc3 {[%emt 0:0:45]} b6 {[%emt 0:0:16]} 17. Bxa5 {[%emt 0:2:41]} bxa5 {[%emt 0:0:9]} 18. Nxe5 {[%emt 0:0:4]} Bd6 {[%emt 0:19:56]} 19. Nc6 {[%emt 0:1:20]} Qh4 {[%emt 0:0:11]} 20. g3 {[%emt 0:0:8]} Qf6 {[%emt 0:0:11]} 21. Nd2 {[%emt 0:2:18]} Bb4 {[%emt 0:3:35]} 22. Ne4 {[%emt 0:2:41]} Qb2 {[%emt 0:0:37]} 23. Qc1 {[%emt 0:4:8]} Qe2 {[%emt 0:2:0]} 24. Qe3 {[%emt 0:0:56]} Qb2 {[%emt 0:8:18]} 25. Qc1 {[%emt 0:27:55]} Qe2 {[%emt 0:0:14]} 26. Qe3 {[%emt 0:0:8]} Qb2 {[%emt 0:2:53]} 27. Rd1 {[%emt 0:0:41]} f5 {[%emt 0:23:29]} 28. Nc5 {[%emt 0:5:40]} Bxc5 {[%emt 0:2:10]} 29. Qxc5 {[%emt 0:0:15]} Qe2 {[%emt 0:1:7]} 30. Ra1 {[%emt 0:14:27]} Re8 {[%emt 0:1:25]} 31. d4 {[%emt 0:9:21]} f4 {[%emt 0:1:18]} 32. Ne5 {[%emt 0:0:19]} fxg3 {[%emt 0:15:42]} 33. hxg3 {[%emt 0:0:6]} Rf8 {[%emt 0:1:3]} 34. Qd5+ {[%emt 0:0:14]} Kh7 {[%emt 0:0:12]} 35. Qg2 {[%emt 0:1:11]} Qb2 {[%emt 0:4:6]} 36. Rd1 {[%emt 0:0:23]} a4 {[%emt 0:1:29]} 37. f3 {[%emt 0:6:23]} Qb3 {[%emt 0:2:32]} 38. Rd3 {[%emt 0:0:15]} Qb1+ {[%emt 0:0:56]} 39. Qf1 {[%emt 0:0:20]} Qb4 {[%emt 0:1:56]} 40. g4 {[%emt 0:2:48]} Qb2 {[%emt 0:5:54]} 41. Qd1 {[%emt 0:37:26]} Bb7 {[%emt 0:6:30]} 42. Rd2 {[%emt 0:0:0]} Qb4 {[%emt 0:0:46]} 43. g5 {[%emt 0:0:0]} Bc8 {[%emt 0:2:24]} 44. Qc2+ {[%emt 0:0:0]} Bf5 {[%emt 0:0:54]} 45. g6+ {[%emt 0:0:0]} Kg8 {[%emt 0:0:59]} 46. Qa2 {[%emt 0:0:0]} Be6 {[%emt 0:6:46]} 47. Kf2 {[%emt 0:1:31]} a3 {[%emt 0:1:20]} 48. Re2 {[%emt 0:3:0]} Qe7 {[%emt 0:2:31]} 49. Re4 {[%emt 0:2:25]} Qb4 {[%emt 0:2:17]} 50. Nc6 {[%emt 0:1:56]} Qd6 {[%emt 0:3:37]} 51. Re5 {[%emt 0:0:22]} Kh8 {[%emt 0:0:23]} 52. Ke3 {[%emt 0:1:5]} Bd7 {[%emt 0:1:4]} 53. Re4 {[%emt 0:3:39]} Bxc6 {[%emt 0:1:7]} 54. bxc6 {[%emt 0:0:5]} Qg3 {[%emt 0:1:19]} 55. Qf2 {[%emt 0:0:21]} Qxg6 {[%emt 0:1:4]} 56. d5 {[%emt 0:0:34]} Qf6 {[%emt 0:1:10]} 57. Qe2 {[%emt 0:0:15]} a2 {[%emt 0:0:50]} 0-1

[Event "FIDE Women Candidates 2026"]
[White "Tan,Zhongyi"]
[Black "Vaishali,Rameshbabu"]
[Site "Agios Georgios Pegeia"]
[Round "13.2"]
[Annotator "RC"]
[Result "1/2-1/2"]
[Date "2026.04.14"]
[WhiteElo "2535"]
[BlackElo "2470"]
[PlyCount "67"]
[TimeControl "60"]

1. d4 {[%emt 0:0:3]} d5 {[%emt 0:0:28]} 2. c4 {[%emt 0:0:7]} e6 {[%emt 0:0:5]} 3. Nc3 {[%emt 0:0:6]} dxc4 {[%emt 0:0:18]} 4. e4 {[%emt 0:1:12]} c5 {[%emt 0:0:11]} 5. d5 {[%emt 0:2:9]} exd5 {[%emt 0:0:12]} 6. exd5 {[%emt 0:0:5]} Bd6 {[%emt 0:0:16]} 7. Bxc4 {[%emt 0:0:49]} Ne7 {[%emt 0:0:13]} 8. Nge2 {[%emt 0:4:31]} O-O {[%emt 0:0:18]} 9. Bg5 {[%emt 0:4:26]} Nd7 {[%emt 0:8:11]} 10. O-O {[%emt 0:0:52]} h6 {[%emt 0:3:11]} 11. Bh4 {[%emt 0:1:42]} Nb6 {[%emt 0:11:12]} 12. b3 {[%emt 0:4:25]} Bf5 {[%emt 0:6:51]} 13. Nb5 {[%emt 0:3:40]} a6 {[%emt 0:6:4]} 14. Nxd6 {[%emt 0:0:46]} Qxd6 {[%emt 0:0:3]} 15. Bg3 {[%emt 0:11:17]} Qf6 {[%emt 0:8:59]} 16. Bc7 {[%emt 0:3:46]} Rfe8 {[%emt 0:16:47]} 17. Ng3 {[%emt 0:4:44]} Nd7 {[%emt 0:2:58]} 18. d6 {[%emt 0:8:47]} Nc6 {[%emt 0:2:4]} 19. Nxf5 {[%emt 0:0:8]} Qxf5 {[%emt 0:0:3]} 20. Bd5 {[%emt 0:0:49]} Re5 {[%emt 0:11:18]} 21. Bf3 {[%emt 0:3:32]} h5 {[%emt 0:1:20]} 22. Re1 {[%emt 0:3:25]} Rae8 {[%emt 0:1:1]} 23. Rxe5 {[%emt 0:0:32]} Rxe5 {[%emt 0:0:46]} 24. Bxc6 {[%emt 0:4:0]} bxc6 {[%emt 0:0:3]} 25. Qf1 {[%emt 0:0:9]} Rd5 {[%emt 0:12:57]} 26. Qe2 {[%emt 0:26:58]} Ne5 {[%emt 0:4:7]} 27. h3 {[%emt 0:1:5]} Nd3 {[%emt 0:0:43]} 28. Qe8+ {[%emt 0:3:47]} Kh7 {[%emt 0:0:2]} 29. Rf1 {[%emt 0:0:8]} Nf4 {[%emt 0:3:2]} 30. Re1 {[%emt 0:4:8]} Nd3 {[%emt 0:1:9]} 31. Rf1 {[%emt 0:0:52]} Nf4 {[%emt 0:0:5]} 32. Re1 {[%emt 0:0:3]} Nd3 {[%emt 0:0:2]} 33. Rf1 {[%emt 0:0:23]} Nf4 {[%emt 0:0:40]} 34. Re1 {[%emt 0:2:9]} 1/2-1/2